fUSD/lending_fUSD_20250622
["ID","MTS","AMOUNT","RATE_DAILY","PERIOD"]
[367034321,1750624241304,-254.0,0.00035616,15]
[367034322,1750624241314,-490.0,0.00035616,15]
[367034323,1750624241323,-490.0,0.00035616,15]
[367034324,1750624241332,-1439.28,0.00035616,15]
[367034325,1750624241341,-840.15,0.00035616,15]
[367034326,1750624241350,-490.0,0.00035616,15]
[367034327,1750624241360,-490.0,0.00035616,15]
[367034328,1750624241369,-490.0,0.00035616,15]
[367034329,1750624241378,-490.0,0.00035616,15]
[367034330,1750624241387,-490.0,0.00035616,15]
[367034331,1750624241397,-490.0,0.00035616,15]
[367034332,1750624241406,-490.0,0.00035616,15]
[367034333,1750624241420,-490.0,0.00035616,15]
[367034334,1750624241429,-490.0,0.00035616,15]
[367034335,1750624241438,-490.0,0.00035616,15]
[367034336,1750624241448,-253.2121094,0.00035616,15]
[367034337,1750624241460,-490.0,0.00035616,15]
[367034338,1750624241469,-308.62739011,0.00035616,15]
[367034339,1750624241479,-247.69658306,0.00035616,15]
[367034340,1750624241489,-490.0,0.00035616,15]
[367034341,1750624241499,-490.0,0.00035616,15]
[367034342,1750624241509,-490.0,0.00035616,15]
[367034343,1750624241518,-576.46,0.00035616,15]
[367034345,1750624241528,-490.0,0.00035616,15]
[367034346,1750624241537,-490.0,0.00035616,15]
[367034347,1750624241546,-490.0,0.00035616,15]
[367034348,1750624241555,-490.0,0.00035616,15]
[367034349,1750624241564,-738.66,0.00035616,15]
[367034350,1750624241574,-490.0,0.00035616,15]
[367034351,1750624241583,-490.0,0.00035616,15]
[367034352,1750624241592,-490.0,0.00035616,15]
[367034353,1750624241601,-625.83,0.00035616,15]
[367034354,1750624241611,-490.0,0.00035616,15]
[367034355,1750624241619,-490.0,0.00035616,15]
[367034356,1750624241629,-490.0,0.00035616,15]
[367034357,1750624241638,-490.0,0.00035616,15]
[367034358,1750624241647,-1008.68,0.00035616,15]
[367034359,1750624241657,-490.0,0.00035616,15]
[367034360,1750624241669,-537.35,0.00035616,15]
[367034361,1750624241679,-490.0,0.00035616,15]
[367034362,1750624241688,-490.0,0.00035616,15]
[367034363,1750624241698,-490.0,0.00035616,15]
[367034364,1750624241708,-490.0,0.00035616,15]
[367034365,1750624241717,-490.0,0.00035616,15]
[367034366,1750624241726,-693.97,0.00035616,15]
[367034367,1750624241735,-490.0,0.00035616,15]
[367034368,1750624241745,-490.0,0.00035616,15]
[367034369,1750624241754,-490.0,0.00035616,15]
[367034370,1750624241764,-420.67230894,0.00035616,15]
[367034371,1750624241773,-551.97726307,0.00035616,15]
[367034372,1750624241783,-490.0,0.00035616,15]
[367034373,1750624241792,-490.0,0.00035616,15]
[367034374,1750624241801,-807.2,0.00035616,15]
[367034375,1750624241811,-490.0,0.00035616,15]
[367034376,1750624241820,-829.91,0.00035616,15]
[367034377,1750624241830,-490.0,0.00035616,15]
[367034378,1750624241839,-1663.48,0.00035616,15]
[367034379,1750624241848,-490.0,0.00035616,2]
[367034380,1750624241858,-490.0,0.00035616,15]
[367034381,1750624241867,-533.73,0.00035616,15]
[367034382,1750624241876,-427.34331036,0.00035616,15]
[367034383,1750624241893,-62.65668964,0.00035616,15]
[367034384,1750624241902,-490.0,0.00035616,15]
[367034385,1750624241915,-490.0,0.00035616,15]
[367034386,1750624241924,-490.0,0.00035616,15]
[367034387,1750624241933,-490.0,0.00035616,15]
[367034388,1750624241942,-490.0,0.00035616,15]
[367034389,1750624241951,-490.0,0.00035616,15]
[367034390,1750624241960,-836.55,0.00035616,15]
[367034391,1750624241969,-490.0,0.00035616,15]
[367034392,1750624241978,-490.0,0.00035616,15]
[367034393,1750624241988,-490.0,0.00035616,15]
[367034394,1750624241997,-490.0,0.00035616,15]
[367034395,1750624242006,-490.0,0.00035616,7]
[367034396,1750624242016,-1910.14,0.00035616,15]
[367034397,1750624242025,-490.0,0.00035616,15]
[367034398,1750624242034,-490.0,0.00035616,15]
[367034399,1750624242044,-490.0,0.00035616,15]
[367034400,1750624242053,-490.0,0.00035616,15]
[367034401,1750624242063,-490.0,0.00035616,15]
[367034402,1750624242072,-490.0,0.00035616,15]
[367034403,1750624242081,-490.0,0.00035616,15]
[367034404,1750624242091,-490.0,0.00035616,15]
[367034405,1750624242100,-755.2,0.00035616,15]
[367034406,1750624242110,-529.56794235,0.00035616,15]
[367034407,1750624242119,-1065.42,0.00035616,15]
[367034408,1750624242128,-490.0,0.00035616,15]
[367034409,1750624242138,-620.08,0.00035616,15]
[367034410,1750624242147,-490.0,0.00035616,15]
[367034411,1750624242157,-1722.05,0.00035616,15]
[367034412,1750624242172,-490.0,0.00035616,15]
[367034413,1750624242183,-490.0,0.00035616,15]
[367034414,1750624242195,-490.0,0.00035616,15]
[367034415,1750624242205,-490.0,0.00035616,15]
[367034416,1750624242214,-490.0,0.00035616,15]
[367034417,1750624242226,-490.0,0.00035616,15]
[367034418,1750624242235,-490.0,0.00035616,15]
[367034419,1750624242245,-490.0,0.00035616,15]
[367034420,1750624242255,-490.0,0.00035616,15]
[367034421,1750624242266,-490.0,0.00035616,15]
[367034422,1750624242276,-490.0,0.00035616,15]
[367034423,1750624242286,-490.0,0.00035616,15]
[367034424,1750624242296,-490.0,0.00035616,15]
[367034425,1750624242306,-490.0,0.00035616,15]
[367034426,1750624242327,-490.0,0.00035616,15]
[367034427,1750624242336,-490.62,0.00035616,15]
[367034428,1750624242346,-490.0,0.00035616,15]
[367034429,1750624242355,-265.33218186,0.00035616,15]
[367034430,1750624242364,-490.0,0.00035616,15]
[367034431,1750624242376,-1580.58,0.00035616,15]
[367034432,1750624242385,-1094.85,0.00035616,15]
[367034433,1750624242395,-490.0,0.00035616,15]
[367034434,1750624242405,-490.0,0.00035616,15]
[367034435,1750624242418,-490.0,0.00035616,15]
[367034436,1750624242428,-490.0,0.00035616,15]
[367034437,1750624242438,-968.86,0.00035616,15]
[367034438,1750624242447,-463.12867618,0.00035616,15]
[367034439,1750624242456,-490.0,0.00035616,15]
[367034440,1750624242466,-490.0,0.00035616,15]
[367034441,1750624242476,-1379.67,0.00035616,15]
[367034442,1750624242485,-490.0,0.00035616,15]
[367034443,1750624242495,-707.31,0.00035616,15]
[367034444,1750624242504,-490.0,0.00035616,15]
[367034445,1750624242514,-490.0,0.00035616,15]
[367034446,1750624242524,-490.0,0.00035616,15]
[367034447,1750624242534,-490.0,0.00035616,15]
[367034448,1750624242543,-586.47,0.00035616,15]
[367034449,1750624242553,-1422.11,0.00035616,15]
[367034450,1750624242563,-490.0,0.00035616,15]
[367034451,1750624242572,-1781.18,0.00035616,15]
[367034452,1750624242581,-490.0,0.00035616,15]
[367034453,1750624242591,-490.0,0.00035616,15]
[367034454,1750624242601,-490.0,0.00035616,15]
[367034455,1750624242611,-314.840002,0.00035616,15]
[367034457,1750624242620,-490.0,0.00035616,15]
[367034458,1750624242629,-490.0,0.00035616,15]
[367034460,1750624242639,-490.0,0.00035616,15]
[367034462,1750624242648,-490.0,0.00035616,15]
[367034465,1750624242658,-490.0,0.00035616,15]
[367034468,1750624242671,-490.0,0.00035616,15]
[367034471,1750624242680,-1481.22,0.00035616,15]
[367034473,1750624242690,-490.0,0.00035616,15]
[367034474,1750624242699,-490.0,0.00035616,15]
[367034476,1750624242709,-490.0,0.00035616,15]
[367034478,1750624242719,-490.0,0.00035616,15]
[367034480,1750624242728,-337.98301092,0.00035616,15]
[367034482,1750624242738,-490.0,0.00035616,15]
[367034484,1750624242748,-492.22,0.00035616,15]
[367034486,1750624242758,-490.0,0.00035616,15]
[367034488,1750624242767,-490.0,0.00035616,15]
[367034491,1750624242776,-490.0,0.00035616,15]
[367034494,1750624242786,-490.0,0.00035616,15]
[367034497,1750624242796,-2222.17,0.00035616,15]
[367034499,1750624242805,-1882.54,0.00035616,15]
[367034502,1750624242815,-490.0,0.00035616,15]
[367034506,1750624242825,-661.67,0.00035616,15]
[367034509,1750624242835,-490.0,0.00035616,15]
[367034513,1750624242845,-1081.99,0.00035616,15]
[367034517,1750624242854,-490.0,0.00035616,15]
[367034521,1750624242864,-674.61,0.00035616,15]
[367034524,1750624242873,-486.17778164,0.00035616,15]
[367034528,1750624242883,-490.0,0.00035616,15]
[367034532,1750624242893,-490.0,0.00035616,15]
[367034536,1750624242903,-490.0,0.00035616,15]
[367034540,1750624242913,-516.85,0.00035616,15]
[367034544,1750624242923,-490.0,0.00035616,15]
[367034548,1750624242933,-490.0,0.00035616,15]
[367034552,1750624242942,-498.54141525,0.00035616,15]
[367034555,1750624242952,-1707.29,0.00035616,15]
[367034558,1750624242962,-490.0,0.00035616,15]
[367034561,1750624242972,-1282.52,0.00035616,15]
[367034564,1750624242982,-1294.02,0.00035616,15]
[367034565,1750624242991,-490.0,0.00035616,15]
[367034568,1750624243002,-490.0,0.00035616,15]
[367034571,1750624243011,-490.0,0.00035616,15]
[367034574,1750624243022,-490.0,0.00035616,15]
[367034577,1750624243032,-539.25,0.00035616,15]
[367034580,1750624243042,-490.0,0.00035616,15]
[367034582,1750624243052,-651.81,0.00035616,15]
[367034584,1750624243062,-490.0,0.00035616,15]
[367034586,1750624243072,-490.0,0.00035616,15]
[367034587,1750624243083,-490.0,0.00035616,15]
[367034588,1750624243094,-490.0,0.00035616,15]
[367034589,1750624243104,-2400.81,0.00035616,15]
[367034590,1750624243114,-490.0,0.00035616,15]
[367034591,1750624243125,-490.0,0.00035616,15]
[367034592,1750624243134,-227.78527457,0.00035616,15]
[367034594,1750624243144,-1180.57,0.00035616,15]
[367034596,1750624243153,-490.0,0.00035616,15]
[367034598,1750624243165,-1624.75,0.00035616,15]
[367034600,1750624243175,-490.0,0.00035616,15]
[367034602,1750624243186,-490.0,0.00035616,15]
[367034604,1750624243197,-490.0,0.00035616,15]
[367034606,1750624243206,-401.54549818,0.00035616,15]
[367034608,1750624243216,-1656.32,0.00035616,15]
[367034610,1750624243227,-490.0,0.00035616,15]
[367034612,1750624243236,-911.85,0.00035616,15]
[367034614,1750624243247,-490.0,0.00035616,15]
[367034615,1750624243257,-490.0,0.00035616,15]
[367034617,1750624243266,-490.0,0.00035616,15]
[367034619,1750624243276,-490.0,0.00035616,15]
[367034621,1750624243286,-2060.57,0.00035616,15]
[367034622,1750624243295,-811.25,0.00035616,15]
[367034623,1750624243305,-2048.09,0.00035616,15]
[367034624,1750624243315,-491.81204926,0.00035616,15]
[367034625,1750624243325,-556.26,0.00035616,15]
[367034626,1750624243335,-490.0,0.00035616,15]
[367034627,1750624243344,-490.0,0.00035616,15]
[367034628,1750624243355,-1602.7,0.00035616,15]
[367034629,1750624243365,-185.70947815,0.00035616,15]
[367034699,1750624244098,-304.29052185,0.00035616,15]
[367034701,1750624244107,-146.88692502,0.00035616,15]
[367034703,1750624244118,-343.11307498,0.00035616,15]
[367034705,1750624244128,-446.39942501,0.00035616,15]
[367034708,1750624244152,-43.60057499,0.00035616,15]
[367034710,1750624244161,-490.0,0.00035616,15]
[367034712,1750624244173,-490.0,0.00035616,15]
[367034714,1750624244184,-1441.28,0.00035616,15]
[367034716,1750624244196,-490.0,0.00035616,15]
[367034718,1750624244206,-490.0,0.00035616,15]
[367034721,1750624244216,-626.79,0.00035616,15]
[367034723,1750624244227,-490.0,0.00035616,15]
[367034725,1750624244237,-721.13,0.00035616,15]
[367034727,1750624244246,-2622.37,0.00035616,15]
[367034729,1750624244256,-490.0,0.00035616,15]
[367034731,1750624244267,-15.7920223,0.00035616,15]
[367034738,1750624244324,-1587.0879777,0.00035616,15]
[367034740,1750624244334,-490.0,0.00035616,15]
[367034742,1750624244343,-490.0,0.00035616,15]
[367034743,1750624244353,-982.41,0.00035616,15]
[367034746,1750624244363,-490.0,0.00035616,15]
[367034747,1750624244373,-490.0,0.00035616,15]
[367034749,1750624244384,-334.47300425,0.00035616,15]
[367034758,1750624244454,-155.52699575,0.00035616,15]
[367034760,1750624244464,-490.0,0.00035616,15]
[367034761,1750624244474,-50.1324796,0.00035616,15]
[367034834,1750624245505,-201.0,0.00032931,2]
[367034849,1750624245871,-135.05598855,0.00035616,15]
[367034850,1750624245912,-304.81153185,0.00035616,15]
[367034851,1750624245925,-490.0,0.00035616,15]
[367034852,1750624245935,-42.04136799,0.00035616,15]
[367034853,1750624245947,-447.95863201,0.00035616,15]
[367034854,1750624245956,-381.29214156,0.00035616,15]
[367034855,1750624246011,-848.42785844,0.00035616,15]
[367034856,1750624246021,-759.56,0.00035616,15]
[367034857,1750624246031,-490.0,0.00035616,15]
[367034858,1750624246040,-490.0,0.00035616,15]
[367034859,1750624246049,-649.89,0.00035616,15]
[367034860,1750624246059,-789.48,0.00035616,15]
[367034861,1750624246068,-490.0,0.00035616,15]
[367034862,1750624246078,-1599.08,0.00035616,15]
[367034863,1750624246087,-177.27344315,0.00035616,15]
[367034864,1750624246244,-312.72655685,0.00035616,15]
[367034865,1750624246254,-111.21344315,0.00035616,4]
[367034866,1750624246298,-188.78655685,0.00035616,4]
[367034867,1750624246308,-490.0,0.00035616,15]
[367034868,1750624246317,-374.64105318,0.00035616,15]
[367034871,1750624247581,-1035.0,0.00035616,5]
[367034872,1750624247592,-429.13894682,0.00035616,15]
[367034873,1750624247602,-490.0,0.00035616,15]
[367034874,1750624247612,-490.0,0.00035616,15]
[367034875,1750624247622,-490.0,0.00035616,15]
[367034876,1750624247632,-1391.92,0.00035616,15]
[367034877,1750624247642,-490.0,0.00035616,15]
[367034878,1750624247652,-118.94105318,0.00035616,15]
[367034879,1750624247664,-371.05894682,0.00035616,15]
[367034880,1750624247676,-597.61,0.00035616,15]
[367034881,1750624247686,-490.0,0.00035616,15]
[367034882,1750624247696,-490.0,0.00035616,15]
[367034883,1750624247705,-906.71,0.00035616,15]
[367034884,1750624247715,-490.0,0.00035616,15]
[367034885,1750624247724,-490.0,0.00035616,15]
[367034886,1750624247734,-1319.43,0.00035616,15]
[367034887,1750624247743,-906.54,0.00035616,15]
[367034888,1750624247752,-490.0,0.00035616,15]
[367034889,1750624247761,-490.0,0.00035616,15]
[367034890,1750624247771,-490.0,0.00035616,15]
[367034891,1750624247781,-501.12880508,0.00035616,15]
[367034892,1750624247790,-490.0,0.00035616,15]
[367034893,1750624247800,-490.0,0.00035616,15]
[367034894,1750624247809,-490.0,0.00035616,15]
[367034895,1750624247819,-1647.96,0.00035616,15]
[367034896,1750624247828,-776.68,0.00035616,15]
[367034897,1750624247838,-863.45,0.00035616,15]
[367034898,1750624247848,-490.0,0.00035616,15]
[367034899,1750624247857,-1297.61,0.00035616,15]
[367034900,1750624247867,-1361.61,0.00035616,15]
[367034901,1750624247876,-1421.38,0.00035616,15]
[367034902,1750624247885,-490.0,0.00035616,15]
[367034903,1750624247895,-2231.06,0.00035616,15]
[367034904,1750624247904,-490.0,0.00035616,15]
[367034905,1750624247913,-490.0,0.00035616,15]
[367034906,1750624247924,-751.19,0.00035616,15]
[367034907,1750624247934,-490.0,0.00035616,15]
[367034908,1750624247944,-490.0,0.00035616,15]
[367034909,1750624247953,-490.0,0.00035616,15]
[367034910,1750624247963,-490.0,0.00035616,15]
[367034911,1750624247972,-490.0,0.00035616,15]
[367034912,1750624247982,-609.58282837,0.00035616,15]
[367034913,1750624247991,-490.0,0.00035616,15]
[367034914,1750624248001,-640.06,0.00035616,15]
[367034915,1750624248010,-1198.82,0.00035616,15]
[367034916,1750624248020,-490.0,0.00035616,15]
[367034917,1750624248030,-891.51,0.00035616,15]
[367034918,1750624248040,-447.70510549,0.00035616,15]
[367034919,1750624248050,-490.0,0.00035616,15]
[367034920,1750624248060,-586.99,0.00035616,15]
[367034921,1750624248071,-490.0,0.00035616,15]
[367034922,1750624248171,-1659.3,0.00035616,15]
[367034923,1750624248186,-490.0,0.00035616,15]
[367034924,1750624248196,-490.0,0.00035616,15]
[367034925,1750624248206,-896.02,0.00035616,15]
[367034926,1750624248215,-1104.69,0.00035616,15]
[367034927,1750624248227,-490.0,0.00035616,15]
[367034928,1750624248237,-1403.9,0.00035616,15]
[367034929,1750624248247,-490.0,0.00035616,15]
[367034930,1750624248258,-490.0,0.00035616,15]
[367034931,1750624248270,-490.0,0.00035616,15]
[367034932,1750624248281,-493.68795833,0.00035616,15]
[367034933,1750624248291,-490.0,0.00035616,15]
[367034934,1750624248301,-1632.41,0.00035616,15]
[367034935,1750624248311,-1232.48,0.00035616,15]
[367034936,1750624248320,-181.46533485,0.00035616,15]
[367034937,1750624248330,-539.49067407,0.00035616,15]
[367034938,1750624248339,-838.38,0.00035616,15]
[367034939,1750624248349,-1747.59,0.00035616,15]
[367034940,1750624248358,-490.0,0.00035616,15]
[367034941,1750624248368,-490.0,0.00035616,15]
[367034942,1750624248378,-490.0,0.00035616,15]
[367034943,1750624248387,-1752.23,0.00035616,15]
[367034944,1750624248397,-629.88,0.00035616,15]
[367034945,1750624248407,-1808.78,0.00035616,15]
[367034946,1750624248416,-490.0,0.00035616,15]
[367034947,1750624248435,-1760.08,0.00035616,15]
[367034948,1750624248445,-490.0,0.00035616,15]
[367034949,1750624248454,-490.0,0.00035616,15]
[367034950,1750624248464,-490.0,0.00035616,15]
[367034951,1750624248473,-490.0,0.00035616,15]
[367034952,1750624248483,-1978.73,0.00035616,15]
[367034953,1750624248492,-535.27,0.00035616,15]
[367034954,1750624248502,-691.49,0.00035616,15]
[367034955,1750624248512,-490.0,0.00035616,15]
[367034956,1750624248522,-1056.19,0.00035616,15]
[367034957,1750624248531,-2665.14,0.00035616,15]
[367034958,1750624248541,-876.45,0.00035616,15]
[367034959,1750624248550,-719.52,0.00035616,15]
[367034960,1750624248561,-311.43817479,0.00035616,15]
[367034961,1750624248571,-490.0,0.00035616,15]
[367034962,1750624248580,-2696.15,0.00035616,2]
[367034963,1750624248590,-490.0,0.00035616,15]
[367034964,1750624248599,-755.14,0.00035616,15]
[367034965,1750624248609,-490.0,0.00035616,15]
[367034966,1750624248618,-807.04,0.00035616,15]
[367034967,1750624248627,-490.0,0.00035616,15]
[367034968,1750624248638,-675.2,0.00035616,15]
[367034969,1750624248648,-997.56,0.00035616,15]
[367034970,1750624248659,-666.67,0.00035616,15]
[367034971,1750624248669,-490.0,0.00035616,15]
[367034972,1750624248682,-1551.53,0.00035616,15]
[367034973,1750624248691,-690.02,0.00035616,15]
[367034974,1750624248701,-2184.16,0.00035616,15]
[367034975,1750624248712,-490.0,0.00035616,15]
[367034976,1750624248722,-574.11,0.00035616,15]
[367034977,1750624248731,-490.0,0.00035616,15]
[367034978,1750624248741,-490.0,0.00035616,15]
[367034979,1750624248751,-1184.62,0.00035616,15]
[367034980,1750624248761,-490.0,0.00035616,15]
[367034981,1750624248770,-490.0,0.00035616,15]
[367034982,1750624248779,-490.0,0.00035616,15]
[367034983,1750624248789,-1300.3,0.00035616,15]
[367034984,1750624248798,-1983.2,0.00035616,15]
[367034985,1750624248807,-490.0,0.00035616,15]
[367034986,1750624248817,-490.0,0.00035616,15]
[367034987,1750624248827,-490.0,0.00035616,15]
[367034988,1750624248836,-490.0,0.00035616,15]
[367034989,1750624248845,-490.0,0.00035616,15]
[367034990,1750624248855,-490.0,0.00035616,15]
[367034991,1750624248864,-490.0,0.00035616,15]
[367034992,1750624248874,-490.0,0.00035616,15]
[367034993,1750624248886,-799.1,0.00035616,15]
[367034994,1750624248898,-594.54,0.00035616,15]
[367034995,1750624248908,-1461.71,0.00035616,15]
[367034996,1750624248918,-223.72199536,0.00035616,15]
[367034997,1750624248930,-579.53,0.00035616,15]
[367034998,1750624248939,-971.9,0.00035616,15]
[367034999,1750624248948,-1062.78,0.00035616,15]
[367035000,1750624248957,-490.0,0.00035616,15]
[367035001,1750624248967,-490.0,0.00035616,15]
[367035002,1750624248976,-490.0,0.00035616,15]
[367035003,1750624248985,-490.0,0.00035616,15]
[367035004,1750624248995,-490.0,0.00035616,15]
[367035005,1750624249004,-1325.91,0.00035616,15]
[367035006,1750624249014,-603.88,0.00035616,15]
[367035007,1750624249024,-490.0,0.00035616,15]
[367035008,1750624249033,-490.0,0.00035616,15]
[367035009,1750624249042,-2112.43,0.00035616,15]
[367035010,1750624249052,-633.45739268,0.00035616,15]
[367035011,1750624249062,-490.0,0.00035616,15]
[367035012,1750624249071,-1095.6,0.00035616,15]
[367035013,1750624249080,-950.23,0.00035616,15]
[367035014,1750624249090,-1415.2,0.00035616,15]
[367035015,1750624249099,-490.0,0.00035616,15]
[367035016,1750624249109,-508.89973645,0.00035616,15]
[367035017,1750624249118,-490.0,0.00035616,15]
[367035018,1750624249128,-490.0,0.00035616,15]
[367035019,1750624249143,-1098.63,0.00035616,15]
[367035020,1750624249153,-769.3,0.00035616,15]
[367035021,1750624249163,-490.0,0.00035616,15]
[367035022,1750624249176,-596.89,0.00035616,15]
[367035023,1750624249188,-1841.34,0.00035616,15]
[367035024,1750624249198,-490.0,0.00035616,15]
[367035025,1750624249215,-490.0,0.00035616,15]
[367035026,1750624249228,-490.0,0.00035616,15]
[367035027,1750624249238,-1414.19,0.00035616,15]
[367035028,1750624249248,-490.0,0.00035616,15]
[367035029,1750624249257,-490.0,0.00035616,15]
[367035030,1750624249268,-1837.6,0.00035616,15]
[367035031,1750624249278,-1000.0,0.00035616,15]
[367035032,1750624249288,-490.0,0.00035616,15]
[367035033,1750624249298,-403.36,0.00035616,15]
[367035034,1750624249308,-490.0,0.00035616,15]
[367035035,1750624249318,-1024.87,0.00035616,15]
[367035036,1750624249328,-1827.24,0.00035616,15]
[367035037,1750624249338,-490.0,0.00035616,15]
[367035038,1750624249348,-883.12,0.00035616,15]
[367035039,1750624249358,-490.0,0.00035616,15]
[367035040,1750624249368,-490.0,0.00035616,15]
[367035041,1750624249377,-1039.2,0.00035616,15]
[367035042,1750624249387,-490.55379806,0.00035616,15]
[367035043,1750624249396,-490.0,0.00035616,15]
[367035044,1750624249405,-526.06,0.00035616,15]
[367035045,1750624249414,-619.0,0.00035616,15]
[367035046,1750624249426,-889.37,0.00035616,15]
[367035047,1750624249437,-1334.57,0.00035616,15]
[367035048,1750624249446,-490.0,0.00035616,15]
[367035049,1750624249455,-490.0,0.00035616,15]
[367035050,1750624249464,-497.76,0.00035616,15]
[367035051,1750624249474,-2104.27,0.00035616,15]
[367035052,1750624249483,-490.0,0.00035616,15]
[367035053,1750624249492,-527.65,0.00035616,15]
[367035054,1750624249501,-725.57,0.00035616,15]
[367035055,1750624249511,-490.0,0.00035616,15]
[367035056,1750624249520,-346.72975806,0.00035616,15]
[367035057,1750624249529,-1410.95,0.00035616,15]
[367035058,1750624249539,-490.0,0.00035616,15]
[367035059,1750624249548,-1179.58,0.00035616,15]
[367035060,1750624249557,-490.0,0.00035616,15]
[367035061,1750624249567,-1115.93,0.00035616,15]
[367035062,1750624249576,-2361.78,0.00035616,15]
[367035063,1750624249585,-648.33,0.00035616,15]
[367035064,1750624249595,-490.0,0.00035616,15]
[367035065,1750624249604,-1201.37,0.00035616,15]
[367035066,1750624249614,-490.0,0.00035616,15]
[367035067,1750624249623,-435.29521589,0.00035616,15]
[367035068,1750624249632,-578.02,0.00035616,15]
[367035069,1750624249641,-490.0,0.00035616,15]
[367035070,1750624249650,-230.0,0.00035616,15]
[367035071,1750624249660,-151.0,0.00035616,7]
[367035072,1750624249670,-490.0,0.00035616,15]
[367035073,1750624249681,-1542.05,0.00035616,15]
[367035074,1750624249690,-490.0,0.00035616,15]
[367035075,1750624249699,-2104.55,0.00035616,15]
[367035076,1750624249708,-480.0,0.00035616,15]
[367035077,1750624249717,-490.0,0.00035616,15]
[367035078,1750624249726,-2558.57,0.00035616,15]
[367035079,1750624249736,-1619.93,0.00035616,15]
[367035080,1750624249745,-490.0,0.00035616,15]
[367035081,1750624249754,-953.93,0.00035616,15]
[367035082,1750624249763,-567.69,0.00035616,15]
[367035083,1750624249773,-490.0,0.00035616,15]
[367035084,1750624249782,-490.0,0.00035616,15]
[367035085,1750624249792,-490.0,0.00035616,15]
[367035086,1750624249801,-490.0,0.00035616,15]
[367035087,1750624249810,-1625.63,0.00035616,15]
[367035088,1750624249819,-1504.56,0.00035616,15]
[367035089,1750624249828,-1337.44,0.00035616,15]
[367035090,1750624249838,-490.0,0.00035616,15]
[367035091,1750624249847,-1832.9,0.00035616,15]
[367035092,1750624249856,-151.0,0.00035616,7]
[367035093,1750624249865,-618.85,0.00035616,15]
[367035094,1750624249874,-490.0,0.00035616,15]
[367035095,1750624249883,-490.0,0.00035616,15]
[367035096,1750624249892,-1056.31,0.00035616,15]
[367035097,1750624249901,-490.0,0.00035616,15]
[367035098,1750624249910,-1378.01,0.00035616,15]
[367035099,1750624249920,-618.94,0.00035616,15]
[367035100,1750624249933,-1565.38,0.00035616,15]
[367035101,1750624249943,-3520.68,0.00035616,15]
[367035102,1750624249952,-490.0,0.00035616,15]
[367035103,1750624249961,-490.0,0.00035616,15]
[367035104,1750624249971,-2619.2,0.00035616,15]
[367035105,1750624249980,-490.0,0.00035616,15]
[367035106,1750624249989,-1283.43,0.00035616,15]
[367035107,1750624249998,-1130.08,0.00035616,15]
[367035108,1750624250007,-490.0,0.00035616,15]
[367035109,1750624250016,-490.0,0.00035616,15]
[367035110,1750624250026,-151.0,0.00035616,7]
[367035111,1750624250035,-490.0,0.00035616,15]
[367035112,1750624250045,-490.0,0.00035616,15]
[367035113,1750624250054,-490.0,0.00035616,15]